bitfinex-derivatives/quotes_BTCF0:USTF0_20240814
["timestamp","ask_amount","ask_price","bid_price","bid_amount"]
[1723635195476,0.00024538,61179.0,61178.0,0.001]
[1723635196090,0.00024538,61179.0,61178.0,0.002]
[1723635197184,0.00024538,61179.0,61175.0,0.3608]
[1723635197185,0.07478224,61179.0,61175.0,0.3608]
[1723635197488,0.07453686,61178.0,61175.0,0.3608]
[1723635197690,0.07453686,61177.0,61175.0,0.3608]
[1723635197892,0.07453686,61176.0,61175.0,0.3608]
[1723635198094,0.02648059,61176.0,61175.0,0.3608]
[1723635198279,0.02648059,61178.0,61175.0,0.3608]
[1723635198480,0.07439851,61177.0,61175.0,0.3608]
[1723635198700,0.07439851,61176.0,61175.0,0.3608]
[1723635198991,0.07439851,61176.0,61165.0,0.37317632]
[1723635198992,0.02648059,61176.0,61165.0,0.3608]
[1723635199290,0.2833,61172.0,61157.0,0.3608]
[1723635199492,0.14584324,61171.0,61157.0,0.3608]
[1723635199688,0.07334324,61170.0,61157.0,0.3608]
[1723635199882,0.07334324,61169.0,61167.0,0.3608]
[1723635200078,0.2187,61171.0,61166.0,0.36104538]
[1723635200079,0.07334324,61168.0,61166.0,0.36104538]
[1723635200286,0.33256535,61171.0,61166.0,0.36104538]
[1723635200287,0.02648471,61167.0,61166.0,0.36104538]
[1723635200492,0.07333367,61170.0,61166.0,0.36104538]
[1723635200690,0.23101083,61171.0,61166.0,0.36104538]
[1723635200691,0.07333359,61169.0,61166.0,0.36104538]
[1723635200888,0.02648471,61168.0,61166.0,0.36104538]
[1723635201089,0.02648471,61167.0,61166.0,0.36104538]
[1723635201292,0.02648471,61169.0,61166.0,0.36104538]
[1723635201488,0.02648471,61168.0,61166.0,0.36104538]
[1723635201688,0.02648471,61167.0,61166.0,0.36104538]
[1723635201891,0.02648471,61169.0,61166.0,0.36104538]
[1723635202187,0.02648471,61168.0,61166.0,0.36104538]
[1723635202389,0.02648471,61167.0,61166.0,0.36104538]
[1723635202791,0.0813554,61169.0,61166.0,0.85152538]
[1723635203088,0.001,61170.0,61167.0,0.0744]
[1723635203089,0.0823554,61170.0,61167.0,0.0744]
[1723635203286,0.0823554,61170.0,61168.0,0.0736]
[1723635203790,0.0823554,61170.0,61168.0,0.56404]
[1723635203980,0.0813554,61171.0,61168.0,0.56404]
[1723635204183,0.0813554,61170.0,61168.0,0.0736]
[1723635204594,0.0813554,61170.0,61168.0,0.56404]
[1723635204803,0.003,61169.0,61168.0,0.6236]
[1723635205286,0.002,61169.0,61168.0,1.63036534]
[1723635205993,0.001,61169.0,61168.0,2.02786521]
[1723635206183,0.001,61169.0,61168.0,2.15592569]
[1723635206391,0.001,61169.0,61168.0,2.25806124]
[1723635206897,0.001,61170.0,61168.0,2.25906124]
[1723635207096,0.001,61170.0,61169.0,1.36206343]
[1723635207293,0.001,61170.0,61169.0,1.53206343]
[1723635207490,0.001,61170.0,61169.0,1.80400295]
[1723635207691,0.001,61170.0,61169.0,1.68996521]
[1723635207886,0.002,61171.0,61169.0,1.68996129]
[1723635208098,0.073,61178.0,61170.0,0.63277188]
[1723635208295,0.073,61178.0,61177.0,0.7216]
[1723635208495,0.073,61178.0,61177.0,0.83399281]
[1723635209193,0.073,61178.0,61177.0,0.93175611]
[1723635209386,0.073,61178.0,61177.0,0.83399281]
[1723635210592,0.073,61178.0,61177.0,0.93175611]
[1723635211600,0.073,61178.0,61177.0,0.93275611]
[1723635211799,0.074,61178.0,61177.0,0.83599281]
[1723635212313,0.074,61178.0,61177.0,0.7236]
[1723635212599,0.001,61178.0,61177.0,0.7236]
[1723635212794,0.001,61178.0,61177.0,0.80508114]
[1723635212992,0.001,61178.0,61177.0,0.8636]
[1723635213806,0.001,61178.0,61177.0,0.94508114]
[1723635214601,0.001,61178.0,61177.0,0.8636]
[1723635214909,0.001,61178.0,61177.0,0.7236]
[1723635215501,0.001,61178.0,61177.0,0.91692938]
[1723635215798,0.001,61178.0,61177.0,1.08692938]
[1723635216796,0.001,61178.0,61177.0,1.00544824]
[1723635217406,0.001,61178.0,61177.0,1.0869127]
[1723635217700,0.001,61178.0,61177.0,1.08691216]
[1723635218106,0.001,61178.0,61177.0,1.00544824]
[1723635218308,0.001,61178.0,61177.0,1.49580824]
[1723635219208,0.001,61178.0,61177.0,1.59358561]
[1723635219505,0.001,61178.0,61177.0,1.89580824]
[1723635219907,0.00024538,61179.0,61177.0,2.11552915]
[1723635220203,0.0653704,61179.0,61177.0,0.7236]
[1723635220405,0.00024538,61179.0,61177.0,0.7236]
[1723635221106,0.001,61178.0,61177.0,0.7236]
[1723635221305,0.0274784,61178.0,61177.0,0.7236]
[1723635222005,0.02747912,61178.0,61177.0,0.7236]
[1723635222197,0.08240199,61178.0,61177.0,0.7236]
[1723635224411,0.001,61178.0,61177.0,0.7236]
[1723635224614,0.08240701,61178.0,61177.0,0.7236]
[1723635225012,0.001,61178.0,61177.0,0.7236]
[1723635225303,0.06613024,61178.0,61177.0,0.7236]
[1723635225505,0.001,61178.0,61177.0,1.12004645]
[1723635226312,0.001,61178.0,61177.0,2.18040645]
[1723635227322,0.001,61178.0,61177.0,2.41097327]
[1723635228609,0.001,61178.0,61177.0,2.42365691]
[1723635229204,0.001,61178.0,61177.0,1.36329691]
[1723635229506,0.001,61178.0,61177.0,0.96685046]
[1723635229903,0.001,61178.0,61177.0,0.95416682]
[1723635231602,0.001,61178.0,61177.0,1.19586566]
[1723635231911,0.001,61178.0,61177.0,1.37861934]
[1723635233118,0.001,61178.0,61177.0,1.2645816]
[1723635233618,0.001,61178.0,61177.0,1.37875943]
[1723635233917,0.001,61178.0,61177.0,1.2645816]
[1723635234212,0.001,61178.0,61177.0,2.15138515]
[1723635234603,0.001,61178.0,61177.0,2.25351159]
[1723635234819,0.001,61178.0,61177.0,2.65351159]
[1723635235316,0.001,61178.0,61177.0,2.42372405]
[1723635235616,0.001,61178.0,61177.0,2.52584876]
[1723635235815,0.001,61178.0,61177.0,2.52439877]
[1723635237416,0.001,61178.0,61177.0,2.12439877]
[1723635237617,0.001,61178.0,61177.0,1.27778358]
[1723635238716,0.001,61178.0,61177.0,1.16001722]
[1723635240517,0.001,61178.0,61177.0,1.38017689]
[1723635240717,0.0733,61178.0,61177.0,1.38017778]
[1723635240916,0.0733,61178.0,61177.0,1.2780479]
[1723635241111,0.001,61178.0,61177.0,1.38017796]
[1723635241617,0.0733,61178.0,61177.0,1.2780479]
[1723635242219,0.0733,61178.0,61177.0,1.40561404]
[1723635242813,0.0733,61178.0,61177.0,1.2780479]
[1723635244209,0.001,61178.0,61177.0,1.2780479]
[1723635244412,0.001,61178.0,61177.0,2.27053143]
[1723635244718,0.001,61178.0,61177.0,2.39250616]
[1723635244918,0.001,61178.0,61177.0,2.64662019]
[1723635245217,0.001,61178.0,61177.0,2.64661585]
[1723635245518,0.01290794,61191.0,61177.0,3.02707472]
[1723635245823,0.01,61191.0,61190.0,0.7216]
[1723635246019,0.01,61191.0,61190.0,0.95098026]
[1723635246321,0.01,61191.0,61190.0,0.83295047]
[1723635248721,0.0227303,61191.0,61190.0,0.83295047]
[1723635249220,0.0227303,61191.0,61190.0,0.83495047]
[1723635249837,0.01,61191.0,61190.0,0.83495047]
[1723635250115,0.0732,61195.0,61190.0,1.09280271]
[1723635250325,0.06513024,61191.0,61190.0,0.8836]
[1723635250627,0.06517689,61203.0,61190.0,2.60129347]
[1723635250812,0.06517689,61205.0,61202.0,0.7216]
[1723635251018,0.06517689,61207.0,61203.0,0.04891396]
[1723635251219,0.06517689,61209.0,61202.0,0.7216]
[1723635251428,0.03236449,61209.0,61208.0,0.3608]
[1723635252220,0.01236449,61209.0,61208.0,0.5208]
[1723635252422,0.06511617,61213.0,61208.0,0.3608]
[1723635252619,0.2186,61215.0,61212.0,0.3608]
[1723635252620,0.06511617,61214.0,61212.0,0.3608]
[1723635252926,0.0724,61215.0,61212.0,0.3608]
[1723635253116,0.0650717,61213.0,61212.0,0.3608]
[1723635253321,0.0724,61215.0,61212.0,0.3608]
[1723635253322,0.138365,61214.0,61212.0,0.3608]
[1723635253619,0.065065,61213.0,61212.0,0.3608]
[1723635253816,0.065065,61213.0,61208.0,0.36876456]
[1723635253817,0.49008,61213.0,61208.0,0.3608]
[1723635254018,0.08140701,61211.0,61208.0,0.3608]
[1723635254227,0.02646838,61210.0,61208.0,0.3608]
[1723635254421,0.09761684,61210.0,61202.0,0.00798456]
[1723635254620,0.09761684,61210.0,61199.0,0.36104518]
[1723635254621,0.45841684,61212.0,61208.0,0.001]
[1723635254824,0.2833,61209.0,61208.0,0.001]
[1723635255029,0.30976874,61209.0,61208.0,0.001]
[1723635255230,0.79988874,61209.0,61199.0,0.36927556]
[1723635255433,0.06504227,61204.0,61199.0,0.36927556]
[1723635256429,0.06503949,61208.0,61203.0,0.3608]
[1723635257229,0.02646721,61214.0,61203.0,0.3608]
[1723635257230,0.06503949,61209.0,61203.0,0.3608]
[1723635257535,0.0723,61214.0,61212.0,0.001]
[1723635257722,0.0704,61213.0,61212.0,0.001]
[1723635258425,0.0704,61213.0,61212.0,0.04981819]
[1723635258626,0.08512086,61214.0,61212.0,0.04981819]
[1723635258627,0.01282086,61214.0,61212.0,0.001]
[1723635258928,0.06503949,61225.0,61212.0,0.001]
[1723635258929,0.2833,61217.0,61212.0,0.001]
[1723635259128,0.2833,61217.0,61212.0,0.04980852]
[1723635259529,0.2833,61217.0,61209.0,0.40960852]
[1723635259830,0.5057,61218.0,61210.0,0.04880852]
[1723635259831,0.2833,61211.0,61210.0,0.04880852]
[1723635261131,0.2853,61211.0,61210.0,0.001]
[1723635263533,0.29664413,61211.0,61210.0,0.001]
[1723635263730,0.01334413,61211.0,61210.0,0.161]
[1723635264031,0.01334413,61211.0,61210.0,0.06606415]
[1723635264227,0.01334413,61211.0,61210.0,0.001]
[1723635265127,0.01334413,61211.0,61210.0,0.002]
[1723635265434,0.3568,61217.0,61210.0,0.002]
[1723635265435,0.3608,61225.0,61210.0,0.172]
[1723635265632,0.3594,61221.0,61218.0,0.3608]
[1723635265824,0.3594,61221.0,61214.0,0.04879086]
[1723635265825,0.3608,61219.0,61214.0,0.04879086]
[1723635266030,0.3608,61219.0,61210.0,0.05079086]
[1723635266237,0.3608,61219.0,61211.0,0.04879086]
[1723635267336,0.3608,61219.0,61210.0,0.05079086]
[1723635267531,0.3608,61219.0,61210.0,0.21079086]
[1723635268230,0.3608,61219.0,61210.0,0.20979086]
[1723635268532,0.3608,61219.0,61211.0,0.0763]
[1723635268724,0.3608,61219.0,61211.0,0.2263]
[1723635269238,0.01283024,61225.0,61217.0,0.04879086]
[1723635269435,0.04,61225.0,61218.0,0.05703314]
[1723635269630,0.04,61225.0,61219.0,0.04879086]
[1723635271426,0.04,61225.0,61218.0,0.00824228]
[1723635271427,0.3608,61222.0,61218.0,0.05703314]
[1723635271631,0.3708,61222.0,61217.0,0.04879086]
[1723635272531,0.3708,61222.0,61215.0,0.36897189]
[1723635272532,0.06503949,61220.0,61215.0,0.36897189]
[1723635272738,0.06503949,61220.0,61215.0,0.51897189]
[1723635273631,0.06503949,61223.0,61215.0,0.51897189]
[1723635273833,0.06503949,61221.0,61215.0,0.51897189]
[1723635274235,0.06503949,61220.0,61215.0,0.51897189]
[1723635274744,0.06503949,61220.0,61217.0,0.001]
[1723635275035,0.06503949,61221.0,61217.0,0.001]
[1723635275445,0.07503949,61221.0,61217.0,0.001]
[1723635276636,0.07503949,61221.0,61217.0,0.002]
[1723635277936,0.07503949,61221.0,61217.0,0.152]
[1723635278144,0.06503949,61220.0,61217.0,0.152]
[1723635278652,0.3608,61226.0,61217.0,0.152]
[1723635278653,0.06503949,61219.0,61217.0,0.151]
[1723635278947,0.06503949,61219.0,61217.0,0.152]
[1723635279143,0.06503949,61218.0,61217.0,0.20079086]
[1723635280038,0.06503949,61220.0,61217.0,0.151]
[1723635280240,0.07503949,61220.0,61217.0,0.151]
[1723635280642,0.07503949,61220.0,61219.0,0.08152327]
[1723635280643,0.01,61220.0,61219.0,0.08152327]
[1723635280841,0.01,61220.0,61219.0,0.15]
[1723635281444,0.01,61220.0,61217.0,0.003]
[1723635282035,0.01,61220.0,61217.0,0.002]
[1723635282235,0.01,61220.0,61219.0,0.001]
[1723635283147,0.01,61220.0,61217.0,0.002]
[1723635283537,0.01,61220.0,61217.0,0.001]
[1723635283841,0.01,61220.0,61219.0,0.001]
[1723635284439,0.01,61220.0,61219.0,0.06516501]
[1723635284440,0.2933,61220.0,61219.0,0.06516501]
[1723635284745,0.01,61220.0,61219.0,0.06516501]
[1723635285445,0.01,61220.0,61217.0,0.04988172]
[1723635285446,1.54414,61220.0,61217.0,0.04988172]
[1723635285636,0.2185,61219.0,61217.0,0.001]
[1723635286244,0.70854,61219.0,61217.0,0.001]
[1723635286641,0.70854,61219.0,61216.0,0.04888172]
[1723635286642,0.2185,61219.0,61216.0,0.04888172]
[1723635286849,0.2185,61219.0,61205.0,0.45864861]
[1723635286850,0.49004,61218.0,61215.0,0.04888172]
[1723635287037,0.2833,61216.0,61214.0,0.04888172]
[1723635287239,0.3608,61215.0,61213.0,0.04888172]
[1723635287746,0.5165476,61214.0,61206.0,0.01257055]
[1723635288045,0.7608,61215.0,61206.0,0.01257055]
[1723635288046,0.3608,61210.0,61206.0,0.01257055]
[1723635289543,0.0814169,61211.0,61206.0,0.01257055]
[1723635289748,0.0814169,61212.0,61206.0,0.01257055]
[1723635289950,0.001,61210.0,61208.0,0.00124497]
[1723635290145,0.06512311,61209.0,61208.0,0.00124497]
[1723635291340,0.06612311,61210.0,61208.0,0.00124497]
[1723635292146,0.06512311,61210.0,61208.0,0.00024497]
[1723635292741,0.06512311,61210.0,61208.0,0.00224497]
[1723635293238,0.06512311,61209.0,61208.0,0.00224497]
[1723635293949,0.001,61210.0,61208.0,0.00224497]
[1723635293950,0.07821732,61210.0,61208.0,0.00224497]
[1723635294143,0.06612311,61210.0,61208.0,0.00224497]
[1723635294753,0.001,61210.0,61208.0,0.00224497]
[1723635295244,0.001,61210.0,61208.0,0.08376824]
[1723635296543,0.06512311,61225.0,61209.0,0.61532916]
[1723635296744,0.04229744,61223.0,61221.0,0.04888841]
[1723635296944,0.04229744,61223.0,61221.0,0.06518454]
[1723635297149,0.04229744,61223.0,61220.0,0.06518454]
[1723635297346,0.04229744,61223.0,61216.0,0.08148068]
[1723635297347,0.04229744,61223.0,61222.0,0.04888438]
[1723635297652,0.04229744,61223.0,61220.0,0.04888438]
[1723635299355,0.04229744,61223.0,61221.0,0.04888438]
[1723635299647,0.04229744,61223.0,61221.0,0.04988438]
[1723635301944,0.04229744,61223.0,61221.0,0.04888438]
[1723635302254,0.04229744,61223.0,61221.0,0.04988438]
[1723635302553,0.04229744,61223.0,61221.0,0.001]
[1723635302855,0.10742055,61223.0,61221.0,0.001]
[1723635303349,0.10742055,61223.0,61221.0,0.002]
[1723635303549,0.06512311,61222.0,61221.0,0.002]
[1723635303851,0.02,61222.0,61221.0,0.002]
[1723635304048,0.02,61222.0,61221.0,0.05088438]
[1723635304950,0.02,61222.0,61221.0,0.002]
[1723635305258,0.08512311,61222.0,61221.0,0.002]
[1723635305556,0.02,61222.0,61221.0,0.002]
[1723635305755,0.97517471,61222.0,61221.0,0.002]
[1723635305945,0.91004,61222.0,61214.0,0.04888438]
[1723635306145,0.3608,61215.0,61213.0,0.04888438]
[1723635306351,0.3608,61215.0,61213.0,0.04889091]
[1723635306352,0.71098,61214.0,61213.0,0.04889091]
[1723635306548,1.35508,61214.0,61208.0,0.00024497]
[1723635306750,0.3608,61209.0,61208.0,0.00024497]
[1723635307655,1.25092,61209.0,61208.0,0.00024497]
[1723635308348,1.25092,61209.0,61200.0,0.06518454]
[1723635308558,0.2833,61203.0,61198.0,0.06518454]
[1723635308852,0.2833,61203.0,61190.0,0.25014861]
[1723635308853,0.1502,61202.0,61197.0,0.06518454]
[1723635309452,0.1502,61202.0,61196.0,0.06518454]
[1723635309653,0.1502,61202.0,61194.0,0.06518454]
[1723635310357,0.1502,61202.0,61196.0,0.3608]
[1723635310658,0.3608,61205.0,61196.0,0.3608]
[1723635310855,0.00024361,61206.0,61202.0,0.3608]
[1723635311951,0.00024361,61206.0,61200.0,0.06518454]
[1723635312354,0.00024361,61206.0,61202.0,0.3608]
[1723635312558,0.00024361,61206.0,61203.0,0.06518454]
[1723635312758,0.00024361,61206.0,61203.0,0.21478454]
[1723635312948,0.00024361,61206.0,61203.0,0.0774]
[1723635313145,0.36104361,61206.0,61196.0,0.52068068]
[1723635313357,0.36104361,61206.0,61197.0,0.0738]
[1723635313755,0.64434361,61206.0,61197.0,0.0738]
[1723635314353,0.64634361,61206.0,61197.0,0.0738]
[1723635315554,0.64734361,61206.0,61203.0,0.001]
[1723635315966,0.49016,61205.0,61203.0,0.001]
[1723635316463,0.56496,61204.0,61203.0,0.001]
[1723635316757,0.0748,61204.0,61203.0,0.001]
[1723635317057,0.56496,61204.0,61203.0,0.001]
[1723635317661,0.96496,61204.0,61193.0,0.07184497]
[1723635317865,0.2833,61200.0,61193.0,0.07184497]
[1723635320361,0.29555373,61200.0,61193.0,0.07584497]
[1723635322857,0.29555373,61200.0,61193.0,0.00424497]
[1723635323052,0.2833,61194.0,61193.0,0.00424497]
[1723635323357,0.2833,61194.0,61193.0,0.00924497]
[1723635323557,0.77354,61194.0,61193.0,0.00924497]
[1723635324652,0.2833,61194.0,61193.0,0.00924497]
[1723635326366,0.77354,61194.0,61193.0,0.00424497]
[1723635327157,0.77354,61194.0,61193.0,0.00924497]
[1723635328655,0.2833,61194.0,61193.0,0.00924497]
[1723635328959,0.77354,61194.0,61193.0,0.00924497]
[1723635329655,0.2833,61194.0,61193.0,0.00924497]
[1723635342068,1.53434,61194.0,61184.0,0.08148068]
[1723635343275,0.6441,61185.0,61183.0,0.08172565]
[1723635344167,0.2833,61185.0,61183.0,0.08172565]
[1723635344577,0.2833,61185.0,61184.0,0.005]
[1723635344979,0.2833,61185.0,61184.0,0.009]
[1723635345566,0.2833,61185.0,61184.0,0.005]
[1723635346563,0.29540679,61185.0,61184.0,0.009]
[1723635349180,0.29540679,61185.0,61184.0,0.3698]
[1723635349971,0.29540679,61185.0,61184.0,0.3648]
[1723635351866,0.29540679,61185.0,61184.0,0.3688]
[1723635353480,0.01210679,61185.0,61184.0,0.3688]
[1723635353682,0.28354497,61190.0,61184.0,0.3688]
[1723635353874,0.28354497,61190.0,61189.0,0.3608]
[1723635354074,0.77382497,61190.0,61189.0,0.3608]
[1723635355180,0.78619647,61190.0,61189.0,0.3608]
[1723635356674,0.78819647,61190.0,61189.0,0.3608]
[1723635356986,0.29791647,61190.0,61189.0,0.3608]
[1723635358073,0.29891647,61190.0,61189.0,0.3608]
[1723635359483,0.65971647,61190.0,61184.0,0.08148068]
[1723635359678,0.65971647,61190.0,61183.0,0.36104497]
[1723635359879,0.2833,61185.0,61183.0,0.36104497]
[1723635361179,0.2833,61185.0,61183.0,0.72184497]
[1723635361486,0.2833,61185.0,61184.0,0.08553043]
[1723635361691,0.2833,61185.0,61184.0,0.19677748]
[1723635361875,0.29591647,61190.0,61184.0,0.19677748]
[1723635362075,0.29591647,61190.0,61189.0,0.3608]
[1723635364584,0.29791647,61190.0,61189.0,0.3608]
[1723635366784,1.18819647,61190.0,61184.0,0.3648]
[1723635366983,1.18819647,61190.0,61183.0,0.0867754]
[1723635366984,0.2833,61185.0,61183.0,0.00524497]
[1723635367184,0.2833,61185.0,61178.0,0.08153043]
[1723635367185,0.3608,61184.0,61178.0,0.08153043]
[1723635367386,0.3608,61184.0,61165.0,0.47498526]
[1723635367387,0.2833,61179.0,61173.0,0.08153043]
[1723635367587,0.3608,61177.0,61170.0,0.08153043]
[1723635367888,0.2833,61173.0,61171.0,0.3608]
[1723635368281,0.2833,61173.0,61169.0,0.08153043]
[1723635368586,0.00024518,61177.0,61170.0,0.5558051]
[1723635368795,0.00024518,61177.0,61175.0,0.3608]
[1723635369091,0.00024518,61177.0,61176.0,0.0753]
[1723635369289,0.00024518,61177.0,61175.0,0.3608]
[1723635370182,0.01203317,61177.0,61175.0,0.3608]
[1723635370987,0.01203317,61177.0,61176.0,0.11230627]
[1723635371188,0.00024518,61177.0,61176.0,0.11230627]
[1723635371390,0.00024518,61177.0,61176.0,0.21015488]
[1723635372486,0.01124518,61177.0,61176.0,0.20973066]
[1723635372680,0.01124518,61177.0,61176.0,0.11188205]
[1723635373890,0.01124518,61177.0,61176.0,0.11388205]
[1723635373891,0.03224518,61177.0,61176.0,0.11388205]
[1723635375487,0.00924518,61177.0,61176.0,0.11288205]
[1723635376593,0.00924518,61177.0,61176.0,0.2106972]
[1723635377180,0.00924518,61177.0,61176.0,0.11288205]
[1723635377589,0.00924518,61177.0,61176.0,0.11260527]
[1723635379390,0.00924518,61177.0,61176.0,0.23039194]
[1723635380191,0.00924518,61177.0,61176.0,0.11260527]
[1723635380989,0.29254518,61177.0,61176.0,0.21042024]
[1723635381194,0.29254518,61177.0,61176.0,0.11260527]
[1723635381399,0.29254518,61177.0,61176.0,0.001]
[1723635381985,0.00924518,61177.0,61176.0,0.11327537]
[1723635382593,0.00924518,61177.0,61176.0,0.25560311]
[1723635382902,0.00924518,61177.0,61176.0,1.43425077]
[1723635383093,0.0733,61192.0,61176.0,1.68839929]
[1723635383294,0.0733,61192.0,61187.0,0.06520533]
[1723635384395,0.01,61192.0,61187.0,0.06520533]
[1723635384594,0.01,61192.0,61188.0,0.06520533]
[1723635384800,0.021,61192.0,61188.0,0.06520533]
[1723635385303,0.022,61192.0,61189.0,0.06520533]
[1723635385497,0.03378542,61192.0,61189.0,0.06520533]
[1723635385693,0.03378542,61192.0,61190.0,0.42600533]
[1723635386199,0.03378542,61192.0,61190.0,0.3608]
[1723635387400,0.03378542,61192.0,61191.0,0.19245457]
[1723635387703,0.03378542,61192.0,61191.0,0.1109479]
[1723635387893,0.02378542,61192.0,61191.0,0.1109479]
[1723635388207,0.02378542,61192.0,61191.0,0.11905825]
[1723635388208,0.012,61192.0,61191.0,0.11905825]
[1723635388604,0.023,61192.0,61191.0,0.21686625]
[1723635389109,0.022,61192.0,61191.0,0.21686625]
[1723635389409,0.023,61192.0,61191.0,0.21686625]
[1723635389604,0.024,61192.0,61191.0,0.2097559]
[1723635389905,0.3073,61192.0,61191.0,0.001]
[1723635390894,0.2853,61192.0,61191.0,0.001]
[1723635392108,0.2923,61192.0,61191.0,0.002]
[1723635392304,0.009,61192.0,61191.0,0.002]
[1723635393305,0.008,61192.0,61191.0,0.001]
[1723635393504,0.009,61192.0,61191.0,0.002]
[1723635394503,0.001,61192.0,61191.0,0.001]
[1723635395199,0.009,61192.0,61191.0,0.11270519]
[1723635395414,0.017,61192.0,61191.0,0.19510902]
[1723635395914,0.017,61192.0,61191.0,0.19410902]
[1723635396302,0.017,61192.0,61191.0,0.19510902]
[1723635396502,0.017,61192.0,61191.0,0.08440383]
[1723635397012,0.017,61192.0,61191.0,0.11356015]
[1723635397310,0.017,61192.0,61191.0,0.08438614]
[1723635397504,0.017,61192.0,61191.0,0.19490245]
[1723635398011,0.017,61192.0,61191.0,0.19390245]
[1723635399010,0.001,61192.0,61191.0,0.19290245]
[1723635399615,0.001,61192.0,61191.0,0.11151631]
[1723635399807,0.06512194,61209.0,61191.0,0.68151631]
[1723635400008,0.0317071,61209.0,61201.0,0.42594433]
[1723635400213,0.0317071,61209.0,61202.0,0.06514433]
[1723635401505,0.0317071,61209.0,61201.0,0.42594433]
[1723635402312,0.0327071,61209.0,61202.0,0.001]
[1723635402615,0.0417071,61209.0,61202.0,0.001]
[1723635404116,0.2833,61204.0,61202.0,0.001]
[1723635404312,0.158,61203.0,61202.0,0.001]
[1723635404516,0.168,61203.0,61201.0,0.001]
[1723635404726,0.0761,61202.0,61201.0,0.001]
[1723635405013,0.0861,61202.0,61201.0,0.001]
[1723635405314,0.0861,61202.0,61201.0,0.002]
[1723635405715,0.0861,61202.0,61199.0,0.00024518]
[1723635405918,0.6441,61200.0,61199.0,0.00024518]
[1723635409824,0.6441,61200.0,61199.0,0.00124518]
[1723635409825,0.2833,61200.0,61199.0,0.00124518]
[1723635413725,0.2833,61200.0,61199.0,0.00224518]
[1723635414026,0.2933,61200.0,61199.0,0.00224518]
[1723635415322,0.2833,61200.0,61199.0,0.00124518]
[1723635415627,0.2933,61200.0,61199.0,0.00124518]
[1723635416023,0.2933,61200.0,61199.0,0.00224518]
[1723635416024,0.3033,61200.0,61199.0,0.00224518]
[1723635418930,0.3033,61200.0,61199.0,0.11129569]
[1723635418931,0.01,61200.0,61199.0,0.11129569]
[1723635419319,0.06512194,61213.0,61199.0,0.75901219]
[1723635419525,0.02024386,61212.0,61209.0,0.06522562]
[1723635419721,0.02024386,61212.0,61210.0,0.0758]
[1723635420028,0.03195392,61212.0,61210.0,0.15733202]
[1723635420330,0.03195392,61212.0,61211.0,0.15813202]
[1723635420537,0.03195392,61212.0,61211.0,0.26508498]
[1723635421528,0.03195392,61212.0,61211.0,0.1566]
[1723635421832,0.00024386,61212.0,61211.0,0.26476373]
[1723635422028,0.0814169,61228.0,61211.0,0.26476373]
[1723635422029,0.06512194,61226.0,61211.0,1.11568373]
[1723635422234,0.08147015,61220.0,61219.0,0.3608]
[1723635422633,0.08147479,61220.0,61219.0,0.3608]
[1723635423134,0.08142309,61221.0,61219.0,0.3608]
[1723635424331,0.01,61220.0,61219.0,0.3618]
[1723635425133,0.01,61220.0,61219.0,0.3628]
[1723635426435,0.2933,61220.0,61219.0,0.3628]
[1723635426736,0.37472309,61220.0,61219.0,0.002]
[1723635427237,0.2933,61220.0,61219.0,0.002]
[1723635427428,0.37462965,61220.0,61219.0,0.002]
[1723635427832,0.38649592,61220.0,61219.0,0.002]
[1723635428144,0.33163158,61220.0,61219.0,0.002]
[1723635428444,0.33163158,61220.0,61219.0,0.003]
[1723635428445,0.82167158,61220.0,61219.0,0.003]
[1723635428636,0.33163158,61220.0,61219.0,0.003]
[1723635429541,0.34163158,61220.0,61219.0,0.003]
[1723635429842,0.33163158,61220.0,61219.0,0.001]
[1723635430338,0.30516627,61220.0,61219.0,0.001]
[1723635431626,0.30516627,61220.0,61213.0,0.00024518]
[1723635431627,1.19520627,61220.0,61213.0,0.00024518]
[1723635431833,0.6441,61214.0,61206.0,0.04880305]
[1723635432036,0.6441,61214.0,61205.0,0.04880305]
[1723635432237,0.2833,61214.0,61205.0,0.04880305]
[1723635432430,0.2833,61214.0,61208.0,0.40960305]
[1723635432630,0.2833,61214.0,61208.0,0.3608]
[1723635433438,0.2923,61214.0,61208.0,0.3608]
[1723635433940,0.009,61214.0,61208.0,0.3608]
[1723635434139,0.009,61214.0,61208.0,0.3618]
[1723635436229,0.3608,61212.0,61208.0,0.001]
[1723635437638,0.3608,61212.0,61205.0,0.04904823]
[1723635437845,0.3608,61206.0,61199.0,0.12540305]
[1723635438030,0.2833,61200.0,61199.0,0.0766]
[1723635439141,0.2833,61205.0,61199.0,0.0766]
[1723635439443,0.14255829,61211.0,61200.0,0.42587198]
[1723635439742,0.3608,61208.0,61207.0,0.04880512]
[1723635440742,0.3608,61208.0,61207.0,0.01243888]
[1723635441445,0.3608,61208.0,61200.0,0.3608]
[1723635441746,0.2833,61201.0,61200.0,0.3608]
[1723635441950,0.2833,61201.0,61200.0,0.3618]
[1723635443334,0.2833,61201.0,61197.0,0.06507198]
[1723635443538,0.2833,61201.0,61193.0,0.36104518]
[1723635443539,0.2833,61201.0,61194.0,0.06507198]
[1723635443751,0.2833,61201.0,61193.0,0.42611716]
[1723635443939,0.2833,61201.0,61193.0,0.36104518]
[1723635444138,0.2833,61201.0,61200.0,0.001]
[1723635444847,0.2933,61201.0,61200.0,0.002]
[1723635445839,0.31213043,61201.0,61200.0,0.002]
[1723635447336,0.38753043,61201.0,61200.0,0.002]
[1723635447542,0.37153043,61201.0,61193.0,0.00024518]
[1723635447742,0.2833,61195.0,61193.0,0.00024518]
[1723635450353,0.2903,61195.0,61193.0,0.00124518]
[1723635452146,0.2913,61195.0,61193.0,0.00124518]
[1723635454048,0.008,61195.0,61193.0,0.00124518]
[1723635455047,0.008,61195.0,61194.0,0.3608]
[1723635455254,0.01183043,61201.0,61194.0,0.85104]
[1723635455549,0.3608,61210.0,61198.0,0.06504741]
[1723635455851,0.3608,61210.0,61199.0,0.06504741]
[1723635456352,0.00024518,61205.0,61199.0,0.42584741]
[1723635456652,0.00024518,61205.0,61201.0,0.06504741]